bitfinex/quotes_BTCUSD_20240719
["timestamp","ask_amount","ask_price","bid_price","bid_amount"]
[1721381087416,0.86418841,64032.0,64031.0,0.0919]
[1721381087931,0.85818841,64032.0,64031.0,0.0919]
[1721381088446,0.86018841,64032.0,64031.0,0.0919]
[1721381088638,0.85518841,64032.0,64031.0,0.0919]
[1721381089071,1.00383874,64032.0,64031.0,0.0919]
[1721381089273,1.01357019,64032.0,64031.0,0.0919]
[1721381089647,1.01457019,64032.0,64031.0,0.0919]
[1721381090066,1.47776411,64032.0,64031.0,0.0919]
[1721381090364,1.32691319,64032.0,64031.0,0.0919]
[1721381092350,1.32691315,64032.0,64031.0,0.0919]
[1721381093839,1.71915615,64032.0,64031.0,0.002]
[1721381094036,1.81915615,64032.0,64031.0,0.002]
[1721381094184,1.936198,64032.0,64031.0,0.002]
[1721381094383,1.97350572,64032.0,64031.0,0.002]
[1721381094634,2.00414833,64032.0,64031.0,0.002]
[1721381094868,1.97350572,64032.0,64031.0,0.002]
[1721381095695,1.97350725,64032.0,64031.0,0.002]
[1721381096268,1.98285121,64032.0,64031.0,0.002]
[1721381098613,1.98285145,64032.0,64031.0,0.002]
[1721381100571,1.82850188,64032.0,64031.0,0.002913]
[1721381100929,1.51615888,64032.0,64031.0,0.002913]
[1721381101189,1.51615874,64032.0,64031.0,0.002913]
[1721381102618,1.82850174,64032.0,64031.0,0.002913]
[1721381102860,1.9828514,64032.0,64031.0,0.002913]
[1721381103074,2.22221199,64032.0,64031.0,0.002913]
[1721381103348,1.655611,64029.0,64028.0,0.009174]
[1721381103552,2.10272587,64029.0,64028.0,0.009174]
[1721381103721,2.13410746,64029.0,64028.0,0.009174]
[1721381103953,2.04420746,64029.0,64028.0,0.009174]
[1721381104101,2.01282587,64029.0,64028.0,0.009174]
[1721381104505,2.01282687,64029.0,64028.0,0.009174]
[1721381104952,2.02682683,64029.0,64028.0,0.009174]
[1721381105963,2.04082683,64029.0,64028.0,0.009174]
[1721381107387,2.05482683,64029.0,64028.0,0.009174]
[1721381107623,2.04509274,64029.0,64028.0,0.009174]
[1721381107832,2.05482681,64029.0,64028.0,0.009174]
[1721381108026,2.20917638,64029.0,64028.0,0.009174]
[1721381108832,2.05482681,64029.0,64028.0,0.009174]
[1721381110017,2.17176896,64029.0,64028.0,0.009174]
[1721381110745,2.16202713,64029.0,64028.0,0.009174]
[1721381110946,2.17176104,64029.0,64028.0,0.009174]
[1721381111233,2.05482665,64029.0,64028.0,0.009174]
[1721381111408,2.17175485,64029.0,64028.0,0.009174]
[1721381113109,2.05482665,64029.0,64028.0,0.009174]
[1721381113966,2.20917622,64029.0,64028.0,0.009174]
[1721381114144,2.25917658,64029.0,64028.0,0.009174]
[1721381114345,2.60374725,64029.0,64028.0,0.009174]
[1721381114552,2.57153458,64029.0,64028.0,0.009174]
[1721381115145,2.55753458,64029.0,64028.0,0.009174]
[1721381115310,2.04082701,64029.0,64028.0,0.009174]
[1721381115508,2.17172999,64029.0,64028.0,0.009174]
[1721381115759,2.05482701,64029.0,64028.0,0.009174]
[1721381116338,2.02682701,64029.0,64028.0,0.009174]
[1721381116762,2.04082701,64029.0,64028.0,0.009174]
[1721381117016,2.05978284,64029.0,64028.0,0.009174]
[1721381117244,2.05978278,64029.0,64028.0,0.009174]
[1721381117374,2.10978278,64029.0,64028.0,0.009174]
[1721381117583,2.09578278,64029.0,64028.0,0.009174]
[1721381117809,2.10978278,64029.0,64028.0,0.009174]
[1721381117977,2.10978286,64029.0,64028.0,0.009174]
[1721381118181,0.25,64022.0,64019.0,0.009174]
[1721381118483,1.47569603,64022.0,64019.0,0.009174]
[1721381118709,2.10048003,64022.0,64019.0,0.009174]
[1721381119083,2.21738069,64022.0,64019.0,0.009174]
[1721381119355,2.26738069,64022.0,64019.0,0.009174]
[1721381119503,2.27838069,64022.0,64019.0,0.009174]
[1721381119682,2.22838069,64022.0,64019.0,0.009174]
[1721381119887,2.23938069,64022.0,64019.0,0.009174]
[1721381120089,2.28938069,64022.0,64019.0,0.009174]
[1721381120319,2.2393715,64022.0,64019.0,0.009174]
[1721381120718,2.2283715,64022.0,64019.0,0.009174]
[1721381121077,2.2423715,64022.0,64019.0,0.009174]
[1721381121302,2.2313715,64022.0,64019.0,0.009174]
[1721381121503,2.23137154,64022.0,64019.0,0.009174]
[1721381121888,2.28283054,64022.0,64019.0,0.009174]
[1721381122097,2.12848097,64022.0,64019.0,0.009174]
[1721381122269,2.20797278,64022.0,64019.0,0.009174]
[1721381122714,2.22197278,64022.0,64019.0,0.009174]
[1721381122916,2.23597278,64022.0,64019.0,0.009174]
[1721381123347,2.20797278,64022.0,64019.0,0.009174]
[1721381123551,2.35648987,64022.0,64019.0,0.009174]
[1721381123789,2.22196711,64022.0,64019.0,0.009174]
[1721381123988,2.11448097,64022.0,64019.0,0.009174]
[1721381124286,2.12848097,64022.0,64019.0,0.009174]
[1721381124603,2.20796711,64022.0,64019.0,0.009174]
[1721381124809,2.11448097,64022.0,64019.0,0.009174]
[1721381125000,2.28283054,64022.0,64019.0,0.009174]
[1721381125964,2.42631668,64022.0,64019.0,0.009174]
[1721381126168,2.42631877,64022.0,64019.0,0.009174]
[1721381126388,2.37631877,64022.0,64019.0,0.009174]
[1721381126610,2.41231877,64022.0,64019.0,0.009174]
[1721381126833,2.42632084,64022.0,64019.0,0.009174]
[1721381127635,2.45762434,64022.0,64019.0,0.009174]
[1721381127843,2.42632084,64022.0,64019.0,0.009174]
[1721381128329,2.20978394,64022.0,64019.0,0.009174]
[1721381128695,2.32664708,64022.0,64019.0,0.009174]
[1721381128897,2.20978394,64022.0,64019.0,0.009174]
[1721381129505,2.21902293,64022.0,64019.0,0.009174]
[1721381130060,2.33540437,64022.0,64019.0,0.009174]
[1721381130637,2.21851694,64022.0,64019.0,0.009174]
[1721381130835,2.335413,64022.0,64019.0,0.009174]
[1721381131043,2.195513,64022.0,64019.0,0.009174]
[1721381131250,2.208313,64022.0,64019.0,0.009174]
[1721381131464,2.09141694,64022.0,64019.0,0.009174]
[1721381132244,2.208313,64022.0,64019.0,0.009174]
[1721381133156,2.09123054,64022.0,64019.0,0.009174]
[1721381133337,2.20825655,64022.0,64019.0,0.009174]
[1721381134150,2.09134042,64022.0,64019.0,0.009174]
[1721381134788,2.24568999,64022.0,64019.0,0.009174]
[1721381135194,2.09134042,64022.0,64019.0,0.009174]
[1721381135802,2.17404042,64022.0,64019.0,0.009174]
[1721381136416,2.13358473,64022.0,64019.0,0.009174]
[1721381136601,2.17405479,64022.0,64019.0,0.009174]
[1721381139606,2.1741957,64022.0,64019.0,0.009174]
[1721381140163,2.83143357,64022.0,64019.0,0.009174]
[1721381140371,1.455809,64020.0,64019.0,0.009174]
[1721381140633,2.26951729,64020.0,64019.0,0.009174]
[1721381140851,2.26952103,64020.0,64019.0,0.009174]
[1721381140970,2.12900371,64020.0,64019.0,0.009174]
[1721381141172,2.20670371,64020.0,64019.0,0.009174]
[1721381141450,2.15670371,64020.0,64019.0,0.009174]
[1721381141820,2.17070371,64020.0,64019.0,0.009174]
[1721381142024,2.22070371,64020.0,64019.0,0.009174]
[1721381142633,2.22056848,64020.0,64019.0,0.009174]
[1721381142995,2.19409274,64020.0,64019.0,0.009174]
[1721381143359,1.87216648,64020.0,64019.0,0.009174]
[1721381143711,2.01269752,64020.0,64019.0,0.009174]
[1721381143932,1.85816648,64020.0,64019.0,0.009174]
[1721381144140,1.79446648,64020.0,64019.0,0.009174]
[1721381144489,1.78046648,64020.0,64019.0,0.009174]
[1721381144644,0.64672064,64020.0,64019.0,0.178874]
[1721381144844,0.64672064,64020.0,64019.0,0.241374]
[1721381144845,0.1799369,64020.0,64019.0,0.241374]
[1721381145346,0.170201,64020.0,64019.0,0.241374]
[1721381146088,0.156201,64020.0,64019.0,0.241374]
[1721381146239,0.170201,64020.0,64019.0,0.241374]
[1721381146432,0.028,64020.0,64019.0,0.241374]
[1721381147048,0.028,64020.0,64019.0,0.2413164]
[1721381147305,0.014,64020.0,64019.0,0.2413164]
[1721381147706,0.015,64020.0,64019.0,0.2413164]
[1721381150516,0.015,64020.0,64019.0,0.7099264]
[1721381151063,0.015,64020.0,64019.0,1.0223334]
[1721381151723,0.015,64020.0,64019.0,1.3347404]
[1721381152472,0.00083,64031.0,64029.0,0.1371]
[1721381152678,0.00083,64031.0,64030.0,0.168294]
[1721381153020,0.00083,64031.0,64030.0,0.1655]
[1721381154429,0.00083,64031.0,64030.0,0.1665]
[1721381155500,0.00083,64031.0,64030.0,0.385176]
[1721381156312,0.00083,64031.0,64030.0,0.23]
[1721381157560,0.00083,64031.0,64030.0,0.698529]
[1721381158757,0.00083,64031.0,64030.0,0.386176]
[1721381158960,0.00083,64031.0,64030.0,0.23]
[1721381159412,0.00083,64031.0,64030.0,0.002]
[1721381159413,0.157004,64031.0,64030.0,0.002]
[1721381159617,0.157004,64031.0,64030.0,0.0919]
[1721381159618,0.469352,64031.0,64030.0,0.0919]
[1721381160731,0.157004,64031.0,64030.0,0.0919]
[1721381161340,0.157004,64031.0,64030.0,0.2309]
[1721381161541,0.00083,64031.0,64030.0,0.2309]
[1721381161958,0.00083,64031.0,64030.0,0.387076]
[1721381162161,0.00083,64031.0,64030.0,0.77660379]
[1721381162502,0.00083,64031.0,64030.0,1.08895679]
[1721381162707,0.00083,64031.0,64030.0,1.40130979]
[1721381166392,0.00083,64031.0,64030.0,1.011782]
[1721381169971,0.00083,64031.0,64030.0,1.324135]
[1721381170694,0.00083,64031.0,64030.0,1.323135]
[1721381171045,0.00083,64031.0,64030.0,1.324135]
[1721381171046,0.00183,64031.0,64030.0,1.324135]
[1721381171221,0.00183,64031.0,64030.0,1.52851674]
[1721381171429,0.00183,64031.0,64030.0,1.50151674]
[1721381171682,0.00183,64031.0,64030.0,1.50051674]
[1721381172104,0.00083,64043.0,64042.0,0.780737]
[1721381172382,0.00083,64043.0,64042.0,1.146137]
[1721381173370,0.00183,64043.0,64042.0,1.461432]
[1721381173741,0.00183,64043.0,64042.0,1.468432]
[1721381173742,0.00283,64043.0,64042.0,1.468432]
[1721381173944,0.00183,64043.0,64042.0,1.465432]
[1721381175067,0.00283,64043.0,64042.0,1.468432]
[1721381177357,0.00283,64043.0,64042.0,1.64581374]
[1721381177558,0.00283,64043.0,64042.0,1.468432]
[1721381184225,0.00075802,64043.0,64042.0,1.468432]
[1721381185405,0.00075802,64043.0,64042.0,1.64581374]
[1721381186511,0.00075802,64043.0,64042.0,1.76850782]
[1721381186668,0.00075802,64043.0,64042.0,2.08080282]
[1721381186870,0.0625,64059.0,64058.0,0.156108]
[1721381187074,0.0625,64059.0,64058.0,0.381008]
[1721381188277,0.0635,64062.0,64061.0,0.156099]
[1721381189080,0.0635,64062.0,64061.0,0.468301]
[1721381191760,0.0635,64062.0,64061.0,0.471301]
[1721381192497,0.0635,64062.0,64061.0,0.476301]
[1721381192837,0.0635,64062.0,64061.0,0.164099]
[1721381194087,0.0635,64062.0,64061.0,0.098]
[1721381194535,0.0635,64062.0,64061.0,0.254101]
[1721381195395,0.21919,64066.0,64062.0,0.156098]
[1721381195596,0.156091,64065.0,64064.0,0.09]
[1721381195954,0.234291,64065.0,64064.0,0.09]
[1721381196962,0.234291,64065.0,64064.0,0.091]
[1721381197171,0.0782,64065.0,64064.0,0.091]
[1721381197732,0.0782,64065.0,64064.0,0.092]
[1721381198956,0.0631,64066.0,64064.0,0.092]
[1721381199164,0.219189,64066.0,64064.0,0.092]
[1721381199816,0.0631,64066.0,64064.0,0.09]
[1721381200025,0.0631,64066.0,64064.0,0.246093]
[1721381201925,0.0632,64074.0,64073.0,0.156071]
[1721381202135,0.0632,64074.0,64073.0,0.246071]
[1721381202546,0.0632,64074.0,64073.0,0.558214]
[1721381202748,0.0789,64078.0,64075.0,0.156066]
[1721381202749,0.0632,64076.0,64075.0,0.156066]
[1721381202955,0.0632,64076.0,64075.0,0.09]
[1721381203388,0.531393,64076.0,64075.0,0.09]
[1721381203589,0.610293,64076.0,64075.0,0.09]
[1721381203921,0.922422,64076.0,64075.0,0.004]
[1721381204124,1.48893274,64076.0,64075.0,0.004]
[1721381204356,1.49865817,64076.0,64075.0,0.004]
[1721381204703,1.86078717,64076.0,64075.0,0.005]
[1721381204912,1.86078717,64076.0,64075.0,0.001]
[1721381204913,1.81078717,64076.0,64075.0,0.001]
[1721381205125,1.81078862,64076.0,64075.0,0.001]
[1721381205337,1.86078862,64076.0,64075.0,0.001]
[1721381205550,1.86078862,64076.0,64075.0,0.004]
[1721381205930,1.86078862,64076.0,64075.0,0.001]
[1721381206516,1.86078862,64076.0,64075.0,0.002]
[1721381206517,1.86378862,64076.0,64075.0,0.002]
[1721381206920,0.0785,64068.0,64044.0,0.62747479]
[1721381207158,0.2,64073.0,64044.0,0.15907479]
[1721381207159,0.156131,64049.0,64044.0,0.15907479]
[1721381207361,0.0612,64048.0,64045.0,0.156137]
[1721381207726,0.393255,64051.0,64044.0,0.394183]
[1721381207727,0.15613,64050.0,64046.0,0.156136]
[1721381209459,0.156125,64051.0,64047.0,0.156135]
[1721381209673,0.40553726,64071.0,64051.0,0.0775]
[1721381209879,0.156112,64057.0,64052.0,0.156122]
[1721381210101,0.312217,64058.0,64051.0,0.0775]
[1721381210304,0.156111,64057.0,64052.0,0.156123]
[1721381210510,0.0634,64059.0,64051.0,0.389746]
[1721381210743,0.156108,64058.0,64052.0,0.00312195]
[1721381210941,0.156108,64058.0,64054.0,0.156116]
[1721381212207,0.156108,64058.0,64053.0,0.15612]
[1721381212436,0.156113,64056.0,64052.0,0.158122]
[1721381212672,0.312218,64058.0,64054.0,0.001]
[1721381212897,0.613346,64055.0,64054.0,0.001]
[1721381213907,0.613346,64055.0,64054.0,0.002]
[1721381214546,0.613346,64055.0,64054.0,0.001]
[1721381215356,0.156123,64052.0,64048.0,0.156131]
[1721381217721,0.156123,64052.0,64048.0,0.158131]
[1721381217920,0.156123,64052.0,64048.0,0.161131]
[1721381220761,0.156123,64052.0,64049.0,0.15613]
[1721381222164,0.156123,64052.0,64049.0,0.16013]
[1721381223559,0.156123,64052.0,64049.0,0.007]
[1721381223763,0.0656,64050.0,64049.0,0.007]
[1721381224712,0.0656,64050.0,64049.0,0.004]
[1721381224931,0.0656,64050.0,64048.0,0.156131]
[1721381225281,0.0656,64050.0,64049.0,0.011]
[1721381226059,0.0656,64050.0,64049.0,0.005]
[1721381226732,0.0656,64050.0,64048.0,0.006]
[1721381226733,0.0814,64049.0,64048.0,0.006]
[1721381226948,0.54979,64049.0,64048.0,0.006]
[1721381227632,1.24031,64049.0,64048.0,0.011]
[1721381227841,1.24031,64049.0,64048.0,0.005]
[1721381228057,0.780712,64044.0,64043.0,0.000913]
[1721381228285,0.846712,64044.0,64043.0,0.000913]
[1721381230007,0.23578174,64048.0,64043.0,0.000913]
[1721381230008,0.0814,64048.0,64043.0,0.000913]
[1721381230256,0.156139,64046.0,64044.0,0.07717479]
[1721381230509,0.37327,64048.0,64044.0,0.07717479]
[1721381230510,0.156135,64047.0,64044.0,0.07717479]
[1721381230748,0.11695266,64060.0,64047.0,0.156134]
[1721381230976,0.061,64055.0,64051.0,0.07717479]
[1721381231227,0.0765,64059.0,64052.0,0.00312222]
[1721381231467,0.0627,64065.0,64058.0,0.07717479]
[1721381231718,0.07014753,64069.0,64058.0,0.07717479]
[1721381231719,0.156081,64069.0,64063.0,0.156094]
[1721381231961,0.0627,64070.0,64063.0,0.156094]
[1721381231962,0.156084,64068.0,64063.0,0.156094]
[1721381232901,0.156084,64068.0,64059.0,0.0777]
[1721381232902,0.156089,64066.0,64059.0,0.31221]
[1721381233112,0.0755,64069.0,64055.0,0.0777]
[1721381233334,0.0627,64070.0,64048.0,0.225813]
[1721381233335,0.001,64055.0,64048.0,0.225813]
[1721381233538,0.001,64055.0,64049.0,0.156129]
[1721381233539,0.156119,64054.0,64049.0,0.156129]
[1721381233771,0.156119,64054.0,64050.0,0.156127]
[1721381234394,0.156119,64054.0,64049.0,0.15613]
[1721381235024,0.156119,64054.0,64050.0,0.167127]
[1721381235573,0.156119,64054.0,64050.0,0.180127]
[1721381236184,0.156119,64054.0,64050.0,0.169127]
[1721381236977,0.156119,64054.0,64050.0,0.156127]
[1721381237407,0.157119,64054.0,64050.0,0.156127]
[1721381237809,0.156123,64052.0,64048.0,0.000913]
[1721381238012,0.312235,64055.0,64048.0,0.000913]
[1721381238013,0.156126,64051.0,64048.0,0.000913]
[1721381238376,0.0638,64054.0,64049.0,0.156129]
[1721381238377,0.156121,64053.0,64049.0,0.156129]
[1721381238943,0.0638,64054.0,64052.0,0.07717479]
[1721381239122,0.0638,64054.0,64048.0,0.003913]
[1721381239307,0.21892,64054.0,64049.0,0.156129]
[1721381239754,0.0628,64054.0,64051.0,0.07717479]
[1721381239908,0.156121,64053.0,64049.0,0.15713]
[1721381240561,0.156121,64053.0,64049.0,0.16113]
[1721381240927,0.218919,64054.0,64051.0,0.07717479]
[1721381243448,0.218919,64054.0,64051.0,0.07817479]
[1721381243671,0.218919,64054.0,64051.0,0.23429979]
[1721381243672,0.0628,64054.0,64051.0,0.23429979]
[1721381243876,0.0628,64054.0,64052.0,0.156123]
[1721381244076,0.295104,64060.0,64056.0,0.156112]
[1721381244690,0.295104,64060.0,64054.0,0.468349]
[1721381245092,0.156106,64059.0,64054.0,0.468349]
[1721381245502,0.156106,64059.0,64054.0,0.156115]
[1721381245878,0.156109,64058.0,64054.0,0.156115]
[1721381247163,0.156109,64058.0,64052.0,0.328245]
[1721381247164,0.312217,64058.0,64052.0,0.016]
[1721381247368,0.139,64060.0,64054.0,0.003]
[1721381247369,0.451208,64060.0,64054.0,0.003]
[1721381247578,0.451208,64060.0,64052.0,0.016]
[1721381247579,0.15611,64058.0,64052.0,0.312244]
[1721381247747,0.15611,64058.0,64054.0,0.156118]
[1721381247888,0.15611,64058.0,64054.0,0.158118]
[1721381248907,0.15611,64058.0,64054.0,0.162118]
[1721381249109,0.15611,64058.0,64054.0,0.160118]
[1721381249355,0.15611,64058.0,64054.0,0.156118]
[1721381249666,0.15611,64058.0,64054.0,0.001]
[1721381250215,0.156106,64059.0,64054.0,0.001]
[1721381250411,0.156106,64059.0,64055.0,0.156115]
[1721381252326,0.156106,64059.0,64055.0,0.157115]
[1721381253195,0.156106,64059.0,64055.0,0.156115]
[1721381253617,0.156106,64059.0,64055.0,0.157115]
[1721381254876,0.295104,64060.0,64055.0,0.157115]
[1721381255420,0.156106,64059.0,64055.0,0.157115]
[1721381255802,0.156106,64059.0,64055.0,0.156115]
[1721381256030,0.156113,64056.0,64051.0,0.156123]
[1721381256229,0.312215,64059.0,64048.0,0.157044]
[1721381256230,0.0606,64057.0,64048.0,0.157044]
[1721381256458,0.0606,64057.0,64049.0,0.15613]
[1721381256459,0.31224,64054.0,64049.0,0.15613]
[1721381256658,0.15612,64053.0,64049.0,0.15613]
[1721381259164,0.31224,64054.0,64050.0,0.156127]
[1721381259165,0.156118,64054.0,64050.0,0.156127]
[1721381259336,0.156117,64055.0,64049.0,0.312258]
[1721381259485,0.0606,64057.0,64053.0,0.2249]
[1721381259689,0.218803,64061.0,64056.0,0.156113]
[1721381259969,0.374906,64061.0,64055.0,0.0758]
[1721381260129,0.156106,64059.0,64055.0,0.0758]
[1721381260337,0.156106,64059.0,64055.0,0.231914]
[1721381261112,0.156106,64059.0,64056.0,0.001]
[1721381262172,0.375906,64061.0,64056.0,0.001]
[1721381262341,0.16583089,64060.0,64056.0,0.001]
[1721381262557,0.156104,64060.0,64055.0,0.156114]
[1721381262968,0.156104,64060.0,64055.0,0.157114]
[1721381263177,0.00972692,64059.0,64055.0,0.157114]
[1721381263730,0.00972692,64059.0,64055.0,0.156114]
[1721381264873,0.156104,64060.0,64055.0,0.156114]
[1721381265183,0.156104,64060.0,64056.0,0.156112]
[1721381266277,0.156104,64060.0,64059.0,0.09]
[1721381266427,0.1668308,64060.0,64059.0,0.09]
[1721381266810,0.1658308,64060.0,64059.0,0.09]
[1721381267513,0.1658308,64060.0,64059.0,0.093]
[1721381268116,0.4780378,64060.0,64059.0,0.093]
[1721381269180,0.6249378,64060.0,64059.0,0.003]
[1721381269595,0.6249378,64060.0,64054.0,0.000913]
[1721381269596,0.156115,64055.0,64054.0,0.000913]
[1721381269933,0.221415,64055.0,64054.0,0.000913]
[1721381270712,0.533646,64055.0,64054.0,0.000913]
[1721381271035,0.615246,64055.0,64054.0,0.000913]
[1721381271239,0.616246,64055.0,64054.0,0.000913]
[1721381276239,0.609846,64055.0,64054.0,0.000913]
[1721381276767,0.93180456,64055.0,64054.0,0.000913]
[1721381277785,0.93180468,64055.0,64054.0,0.000913]
[1721381280744,0.93180489,64055.0,64054.0,0.000913]
[1721381283250,0.922077,64055.0,64054.0,0.000913]
[1721381283458,0.93180489,64055.0,64054.0,0.000913]
[1721381286304,1.39841763,64055.0,64054.0,0.000913]
[1721381286548,1.86064863,64055.0,64054.0,0.000913]
[1721381286840,1.89243378,64055.0,64054.0,0.000913]
[1721381287514,1.89143378,64055.0,64054.0,0.000913]
[1721381288721,1.85964863,64055.0,64054.0,0.000913]
[1721381288975,1.89333678,64055.0,64054.0,0.002913]
[1721381289448,1.89333678,64055.0,64054.0,0.000913]
[1721381289449,1.89133835,64055.0,64054.0,0.000913]
[1721381289678,1.89333835,64055.0,64054.0,0.002913]
[1721381290440,2.04568792,64055.0,64054.0,0.000913]
[1721381290562,1.092997,64044.0,64043.0,0.00066702]
[1721381290809,1.49720663,64044.0,64043.0,0.00066702]
[1721381292332,1.49720663,64044.0,64043.0,0.00166702]
[1721381292333,1.49920663,64044.0,64043.0,0.00166702]
[1721381292851,1.48747874,64044.0,64043.0,0.00066702]
[1721381293058,1.49920921,64044.0,64043.0,0.00266702]
[1721381293400,1.49920921,64044.0,64043.0,0.00166702]
[1721381293838,1.49720921,64044.0,64043.0,0.00166702]
[1721381294801,1.48747874,64044.0,64043.0,0.00166702]
[1721381295003,1.48947874,64044.0,64043.0,0.00266702]
[1721381295204,1.48947874,64044.0,64043.0,0.00166702]
[1721381295620,1.48747874,64044.0,64043.0,0.00166702]
[1721381295825,1.48947874,64044.0,64043.0,0.00266702]
[1721381296224,1.48947874,64044.0,64043.0,0.00366702]
[1721381297642,1.41097874,64044.0,64043.0,0.00366702]
[1721381298170,1.40897874,64044.0,64043.0,0.00266702]
[1721381298580,0.258142,64044.0,64043.0,0.00166702]
[1721381298797,0.102,64044.0,64043.0,0.00266702]
[1721381299012,0.156141,64045.0,64043.0,0.00166702]
[1721381299168,0.156141,64045.0,64043.0,0.00066702]
[1721381299382,0.156141,64045.0,64043.0,0.00166702]
[1721381299744,0.002,64044.0,64043.0,0.00166702]
[1721381300151,0.156141,64045.0,64043.0,0.00066702]
[1721381300407,0.156141,64045.0,64044.0,0.09]
[1721381300577,0.256141,64045.0,64043.0,0.00066702]
[1721381300754,0.156141,64045.0,64043.0,0.00066702]
[1721381301544,0.158141,64045.0,64043.0,0.00166702]
[1721381301742,0.158141,64045.0,64043.0,0.00266702]
[1721381303447,0.156142,64044.0,64043.0,0.00266702]
[1721381303858,1.234497,64044.0,64043.0,0.00266702]
[1721381304284,1.39860882,64044.0,64043.0,0.00266702]
[1721381304497,1.49860882,64044.0,64043.0,0.00166702]
[1721381304947,1.50060882,64044.0,64043.0,0.00166702]
[1721381305689,1.50060882,64044.0,64043.0,0.00066702]
[1721381305972,2.1751794,64044.0,64043.0,0.00066702]
[1721381306210,2.29200346,64044.0,64043.0,0.00066702]
[1721381306460,2.1751794,64044.0,64043.0,0.00066702]
[1721381306707,2.20847226,64044.0,64043.0,0.00066702]
[1721381307645,2.20647226,64044.0,64043.0,0.00166702]
[1721381307875,2.36082183,64044.0,64043.0,0.00166702]
[1721381308116,2.59182183,64044.0,64043.0,0.00266702]
[1721381308353,2.43747226,64044.0,64043.0,0.00266702]
[1721381308836,2.42947226,64044.0,64043.0,0.00166702]
[1721381309089,2.42959574,64044.0,64043.0,0.00166702]
[1721381309349,2.43759574,64044.0,64043.0,0.00166702]
[1721381309858,2.44859574,64044.0,64043.0,0.00266702]
[1721381310094,2.43759574,64044.0,64043.0,0.00166702]
[1721381310339,2.4151812,64044.0,64043.0,0.00266702]
[1721381310565,2.42560276,64044.0,64043.0,0.00266702]
[1721381310991,2.06331776,64044.0,64043.0,0.00266702]
[1721381311203,2.05531776,64044.0,64043.0,0.00166702]
[1721381311403,2.22204225,64044.0,64043.0,0.00166702]
[1721381311609,2.11331776,64044.0,64043.0,0.00266702]
[1721381312212,2.18862753,64044.0,64043.0,0.00166702]
[1721381312413,0.468573,64024.0,64023.0,0.002794]
[1721381312628,0.362316,64038.0,64022.0,0.0786]
[1721381312629,0.0658,64028.0,64022.0,0.0786]
[1721381313653,0.0698,64028.0,64022.0,0.0786]
[1721381314066,0.46858,64023.0,64022.0,0.0786]
[1721381315132,0.780967,64023.0,64022.0,0.0786]
[1721381315538,0.781967,64023.0,64022.0,0.0786]
[1721381316435,0.781967,64023.0,64022.0,0.0796]
[1721381319026,0.46958,64023.0,64022.0,0.0796]
[1721381320131,0.157193,64023.0,64022.0,0.0796]
[1721381320536,0.46958,64023.0,64022.0,0.0796]
[1721381323826,0.001,64023.0,64022.0,0.0796]
[1721381324226,0.157193,64023.0,64022.0,0.001]
[1721381324430,0.53588,64023.0,64022.0,0.001]
[1721381324635,0.223493,64023.0,64022.0,0.001]
[1721381324957,0.157193,64023.0,64022.0,0.001]
[1721381327561,0.001,64023.0,64022.0,0.001]
[1721381327740,0.001,64023.0,64022.0,0.0804]
[1721381328143,0.001,64023.0,64022.0,0.1705]
[1721381328809,0.001,64023.0,64022.0,0.9546037]
[1721381329205,0.001,64023.0,64022.0,0.95148]
[1721381329407,0.001,64023.0,64022.0,0.86138]
[1721381329591,0.001,64023.0,64022.0,0.326696]
[1721381329786,0.001,64023.0,64022.0,0.639088]
[1721381330576,0.76576174,64023.0,64022.0,0.001]
[1721381330693,1.26227538,64023.0,64022.0,0.001]
[1721381330892,1.67466238,64023.0,64022.0,0.001]
[1721381331324,2.02731639,64023.0,64022.0,0.001]
[1721381331521,2.03705092,64023.0,64022.0,0.001]
[1721381331732,1.98605092,64023.0,64022.0,0.001]
[1721381331932,1.99405092,64023.0,64022.0,0.002]
[1721381332147,1.90395092,64023.0,64022.0,0.002]
[1721381332544,1.89595092,64023.0,64022.0,0.001]
[1721381332828,1.240307,64020.0,64019.0,0.0091164]
[1721381333141,1.50442327,64020.0,64019.0,0.0091164]
[1721381334481,1.50442327,64020.0,64019.0,0.0101164]
[1721381334482,1.51242327,64020.0,64019.0,0.0101164]
[1721381334701,1.52142336,64020.0,64019.0,0.0111164]
[1721381335285,1.83382536,64020.0,64019.0,0.0111164]
[1721381336000,2.55057693,64020.0,64019.0,0.01106835]
[1721381336200,2.03382536,64020.0,64019.0,0.01106835]
[1721381336601,1.83382536,64020.0,64019.0,0.01106835]
[1721381337560,1.82582536,64020.0,64019.0,0.01006835]
[1721381337773,1.81682536,64020.0,64019.0,0.00906835]
[1721381337944,1.83982595,64020.0,64019.0,0.01106835]
[1721381338299,1.83082595,64020.0,64019.0,0.01006835]
[1721381338719,1.83982595,64020.0,64019.0,0.01106835]
[1721381339323,1.81682595,64020.0,64019.0,0.00906835]
[1721381339524,1.83082595,64020.0,64019.0,0.00906835]
[1721381339906,1.84482595,64020.0,64019.0,0.01006835]
[1721381340454,1.83082595,64020.0,64019.0,0.01006835]
[1721381340808,1.84482612,64020.0,64019.0,0.01006835]
[1721381341241,1.83082612,64020.0,64019.0,0.01006835]
[1721381341443,1.81682612,64020.0,64019.0,0.00906835]
[1721381342001,1.83082612,64020.0,64019.0,0.01006835]
[1721381342350,1.83082612,64020.0,64019.0,0.00906835]
[1721381342351,1.81682612,64020.0,64019.0,0.00906835]
[1721381342526,1.83082612,64020.0,64019.0,0.01006835]
[1721381342724,1.84482612,64020.0,64019.0,0.01006835]
[1721381342989,1.83082612,64020.0,64019.0,0.01006835]
[1721381343178,1.81682612,64020.0,64019.0,0.00906835]
[1721381343383,1.82109074,64020.0,64019.0,0.00906835]
[1721381343593,1.83082612,64020.0,64019.0,0.00906835]
[1721381345228,1.84482612,64020.0,64019.0,0.01006835]
[1721381345599,1.83082612,64020.0,64019.0,0.00906835]
[1721381345803,1.81682612,64020.0,64019.0,0.00906835]